bitfinex-derivatives/quotes_BNBF0:USTF0_20241230
["timestamp","ask_amount","ask_price","bid_price","bid_amount"]
[1735565061886,0.26389163,697.9,696.18,1.06701445]
[1735565062184,0.26389163,697.89,696.18,1.06701445]
[1735565062383,0.26389163,697.88,696.18,1.06701445]
[1735565062688,0.26389163,697.87,696.18,1.06701445]
[1735565062982,0.26389163,697.86,696.16,1.06701445]
[1735565063187,0.26389163,697.85,696.16,1.06701445]
[1735565063388,0.26389163,697.84,696.16,1.06701445]
[1735565063581,0.26389163,697.83,696.16,1.06701445]
[1735565063786,0.26389163,697.82,696.18,1.06701445]
[1735565063986,0.26389163,697.81,696.18,1.06701445]
[1735565064283,0.26389163,697.8,696.18,1.06701445]
[1735565064593,0.26389163,697.79,696.18,1.06701445]
[1735565064790,0.26389163,697.78,696.18,1.06701445]
[1735565064987,0.26389163,697.77,696.18,1.06701445]
[1735565065191,0.26397048,697.77,696.22,1.06701445]
[1735565065385,0.26397048,697.76,696.22,1.06701445]
[1735565065584,0.26397048,697.75,696.22,1.06701445]
[1735565065789,0.26397048,697.74,696.22,1.06701445]
[1735565065989,0.26397048,697.73,696.22,1.06701445]
[1735565066179,0.26397048,697.72,696.22,1.06701445]
[1735565066384,0.26397048,697.71,696.28,1.06701445]
[1735565066581,0.26397048,697.7,696.28,1.06701445]
[1735565066886,0.26397048,697.69,696.28,1.06701445]
[1735565067083,0.26397048,697.68,696.28,1.06701445]
[1735565067285,0.63143383,698.11,696.28,1.06701445]
[1735565067286,0.26397048,697.67,696.28,1.06701445]
[1735565067480,0.26397048,697.66,696.28,1.06701445]
[1735565067683,0.26402787,697.65,696.26,1.06701445]
[1735565067873,0.26402787,697.64,696.26,1.06701445]
[1735565068083,0.26402787,697.63,696.26,1.06701445]
[1735565068283,0.26403076,697.62,696.26,1.06701445]
[1735565068485,0.28647959,698.13,696.26,1.06701445]
[1735565068486,0.26403076,697.61,696.26,1.06701445]
[1735565068682,0.26403076,697.6,696.28,1.06701445]
[1735565068981,0.26403076,697.59,696.28,1.06701445]
[1735565069183,0.26403076,697.58,696.28,1.06701445]
[1735565069376,0.26403076,697.57,696.28,1.06701445]
[1735565069571,0.26403076,697.56,696.28,1.06701445]
[1735565069776,0.26403076,697.55,696.25,1.06701445]
[1735565069964,0.26403076,697.54,696.25,1.06701445]
[1735565070164,0.28647959,698.13,696.25,1.06701445]
[1735565070165,0.26403076,697.53,696.25,1.06701445]
[1735565070363,0.26403076,697.52,696.25,1.06701445]
[1735565070559,0.26403076,697.51,696.25,1.06701445]
[1735565070754,0.26403076,697.5,696.32,1.06701445]
[1735565070961,0.26403076,697.49,696.32,1.06701445]
[1735565071261,0.28647959,698.13,696.32,1.06701445]
[1735565071262,0.26403076,697.48,696.32,1.06701445]
[1735565071456,0.26403076,697.47,696.32,1.06701445]
[1735565071653,0.26403076,698.12,696.32,1.06701445]
[1735565071859,0.26403076,698.11,696.33,1.06701445]
[1735565072056,0.26403076,698.1,696.33,1.06701445]
[1735565072255,0.26403076,698.09,696.33,1.06701445]
[1735565072460,0.26403076,698.08,696.33,1.06701445]
[1735565072661,0.26403076,698.07,696.33,1.06701445]
[1735565072858,0.26403076,698.06,696.29,1.06701445]
[1735565073061,0.26403076,698.05,696.29,1.06701445]
[1735565073362,0.26403076,698.04,696.29,1.06701445]
[1735565073564,0.26403076,698.03,696.29,1.06701445]
[1735565073867,0.26403076,698.02,696.28,1.06701445]
[1735565074159,0.26403076,698.01,696.28,1.06701445]
[1735565074365,0.26403076,698.0,696.28,1.06701445]
[1735565074559,0.26403076,697.99,696.28,1.06701445]
[1735565074866,0.26403076,697.98,696.58,1.06701445]
[1735565075066,0.26403076,697.97,696.58,1.06701445]
[1735565075266,0.28647959,698.13,696.58,1.06701445]
[1735565075459,0.2639747,698.12,696.58,1.06701445]
[1735565075662,0.2639747,698.11,696.58,1.06701445]
[1735565075858,0.28647959,698.13,696.58,1.06701445]
[1735565076064,0.26396994,698.12,696.6,1.06701445]
[1735565076259,0.26396994,698.11,696.6,1.06701445]
[1735565076465,0.26396994,698.1,696.6,1.06701445]
[1735565076663,0.28647959,698.13,696.6,1.06701445]
[1735565076664,0.26396994,698.09,696.6,1.06701445]
[1735565076862,0.26396994,698.08,696.6,1.06701445]
[1735565077064,0.26396994,698.07,696.62,1.06701445]
[1735565077363,0.26396994,698.06,696.62,1.06701445]
[1735565077559,0.26396994,698.05,696.62,1.06701445]
[1735565077761,0.26396514,698.04,696.62,1.06701445]
[1735565077959,0.28647959,698.13,696.62,1.06701445]
[1735565078163,0.26397201,698.12,696.62,1.06701445]
[1735565078364,0.26397201,698.11,696.59,1.06701445]
[1735565078565,0.26397201,698.1,696.59,1.06701445]
[1735565078760,0.26397201,698.09,696.59,1.06701445]
[1735565078963,0.26397201,698.08,696.59,1.06701445]
[1735565079160,0.26397201,698.08,696.35,1.07128716]
[1735565079161,0.26397201,698.07,696.6,1.06701445]
[1735565079365,0.26397201,698.06,696.6,1.06701445]
[1735565079562,0.26397201,698.05,696.6,1.06701445]
[1735565079760,0.26397201,698.04,696.6,1.06701445]
[1735565079966,0.26397201,698.03,696.6,1.06701445]
[1735565080168,0.26397201,698.02,696.57,1.06701445]
[1735565080369,0.26397201,698.01,696.57,1.06701445]
[1735565080561,0.26397099,698.0,696.57,1.06701445]
[1735565080765,0.26397099,697.99,696.57,1.06701445]
[1735565081068,0.26397099,697.98,696.57,1.06701445]
[1735565081264,0.28654937,697.96,696.54,1.06701445]
[1735565081469,0.26397099,697.95,696.54,1.06701445]
[1735565081669,0.28656168,697.93,696.54,1.06701445]
[1735565081969,0.26397099,697.92,696.54,1.06701445]
[1735565082165,0.26397099,697.92,696.5,1.06701445]
[1735565082570,0.28656168,697.93,696.5,1.06701445]
[1735565083172,0.28656168,697.93,695.89,1.06701445]
[1735565083870,0.26405775,697.92,695.89,1.06701445]
[1735565084266,0.26405775,697.92,694.45,2.18721128]
[1735565084267,0.28656168,697.93,695.84,1.06701445]
[1735565084866,0.26405686,697.92,695.84,1.06701445]
[1735565085374,0.26405686,697.92,695.82,1.06701445]
[1735565086271,0.26405686,697.92,695.95,1.06701445]
[1735565087273,0.26405686,697.92,694.84,2.18721128]
[1735565087274,0.26405686,697.92,695.93,1.06701445]
[1735565087473,0.26405686,697.91,695.93,1.06701445]
[1735565087668,0.28656168,697.93,695.93,1.06701445]
[1735565087669,0.26405686,697.9,695.93,1.06701445]
[1735565087869,0.26405686,697.89,695.93,1.06701445]
[1735565088073,0.26405686,697.88,695.93,1.06701445]
[1735565088377,0.26405686,697.88,695.36,1.07128716]
[1735565088378,0.26409496,697.87,696.19,1.06701445]
[1735565088673,0.26409496,697.86,696.19,1.06701445]
[1735565088974,0.26409496,697.85,696.19,1.06701445]
[1735565089174,0.26409496,697.84,696.19,1.06701445]
[1735565089377,0.26409496,697.83,696.16,1.06701445]
[1735565089574,0.26409496,697.82,696.16,1.06701445]
[1735565089873,0.26409496,697.81,696.16,1.06701445]
[1735565090074,0.26409496,697.8,696.16,1.06701445]
[1735565090273,0.28662329,697.78,696.16,1.06701445]
[1735565090473,0.26409496,697.77,696.14,1.06701445]
[1735565090668,0.26409496,697.76,696.14,1.06701445]
[1735565090872,0.26412135,697.75,696.14,1.06701445]
[1735565091071,0.26412135,697.74,696.14,1.06701445]
[1735565091273,0.26412135,697.73,696.14,1.06701445]
[1735565091474,0.28662329,697.78,696.14,1.06701445]
[1735565091675,0.2641224,697.77,696.1,1.06701445]
[1735565091871,0.2641224,697.76,696.1,1.06701445]
[1735565092072,0.2641224,697.75,696.1,1.06701445]
[1735565092269,0.2641224,697.74,695.78,1.06701445]
[1735565092471,0.2641224,697.77,695.78,1.06701445]
[1735565092673,0.2641224,697.76,695.78,1.06701445]
[1735565092868,0.2641224,697.75,695.78,1.06701445]
[1735565093175,0.2641224,697.74,695.7,1.06701445]
[1735565093378,0.2641224,697.73,695.7,1.06701445]
[1735565093674,0.26422589,697.72,695.7,1.06701445]
[1735565093870,0.26422589,697.71,695.7,1.06701445]
[1735565094069,0.26422589,697.7,695.7,1.06701445]
[1735565094276,0.26422589,697.69,695.32,1.06701445]
[1735565094474,0.26422589,697.68,695.32,1.06701445]
[1735565094669,0.26422589,697.67,695.32,1.06701445]
[1735565094874,0.26422589,697.66,695.32,1.06701445]
[1735565095074,0.26422589,697.65,695.32,1.06701445]
[1735565095274,0.26422589,697.64,695.32,1.06701445]
[1735565095474,0.26422589,697.63,695.29,1.06701445]
[1735565095671,0.26422589,697.62,695.29,1.06701445]
[1735565095972,0.26422589,697.61,695.29,1.06701445]
[1735565096179,0.26423017,697.6,695.29,1.06701445]
[1735565096378,0.26423017,697.59,695.25,1.06701445]
[1735565096572,0.26423017,697.58,695.25,1.06701445]
[1735565096772,0.26423017,697.57,695.25,1.06701445]
[1735565096977,0.26423017,697.56,695.25,1.06701445]
[1735565097177,0.26423017,697.55,695.25,1.06701445]
[1735565097378,0.26423017,697.54,695.23,1.06701445]
[1735565097577,0.26423017,697.53,695.23,1.06701445]
[1735565097772,0.28662329,697.78,695.23,1.06701445]
[1735565097773,0.26423017,697.52,695.23,1.06701445]
[1735565097980,0.26423017,697.51,695.23,1.06701445]
[1735565098280,0.26423017,697.5,695.17,1.06701445]
[1735565098578,0.28662329,697.78,695.17,1.06701445]
[1735565098778,0.2642388,697.77,695.17,1.06701445]
[1735565100080,0.2642388,697.77,695.2,1.06701445]
[1735565100875,0.28662329,697.78,695.2,1.06701445]
[1735565101078,0.26424496,697.77,695.2,1.06701445]
[1735565101276,0.26424496,697.77,695.31,1.06701445]
[1735565102382,0.26424496,697.77,695.29,1.06701445]
[1735565102883,0.26424496,697.76,695.29,1.06701445]
[1735565103083,0.28662329,697.78,695.3,1.06701445]
[1735565103084,0.26424571,697.75,695.3,1.06701445]
[1735565103283,0.26424571,697.74,695.3,1.06701445]
[1735565103492,0.26424571,697.73,695.3,1.06701445]
[1735565103783,0.26424571,697.72,695.3,1.06701445]
[1735565103982,0.26424571,697.71,695.3,1.06701445]
[1735565104182,0.26424571,697.7,695.29,1.06701445]
[1735565104384,0.26424571,697.69,695.29,1.06701445]
[1735565104580,0.26424571,697.68,695.29,1.06701445]
[1735565104784,0.26424571,697.67,695.29,1.06701445]
[1735565104984,0.26424571,697.66,695.29,1.06701445]
[1735565105186,0.26424571,697.65,695.29,1.06701445]
[1735565105482,0.26424571,697.64,695.35,1.06701445]
[1735565105678,0.26423153,697.63,695.35,1.06701445]
[1735565105878,0.26423153,697.62,695.35,1.06701445]
[1735565106083,0.26423153,697.61,695.35,1.06701445]
[1735565106380,0.26419723,697.6,695.35,1.06701445]
[1735565106584,0.26419723,697.59,695.4,1.06701445]
[1735565106785,0.26419723,697.58,695.4,1.06701445]
[1735565106978,0.26419723,697.57,695.4,1.06701445]
[1735565107290,0.26419723,697.56,695.4,1.06701445]
[1735565107587,0.26419723,697.55,695.31,1.06701445]
[1735565107885,0.26419723,697.54,695.31,1.06701445]
[1735565108081,0.26419723,697.53,695.31,1.06701445]
[1735565108286,0.26416954,697.52,695.31,1.06701445]
[1735565108488,0.26416954,697.77,695.31,1.06701445]
[1735565108685,0.26416954,697.76,695.6,1.06701445]
[1735565108886,0.26416954,697.75,695.6,1.06701445]
[1735565109085,0.26416954,697.74,695.6,1.06701445]
[1735565109281,0.26416954,697.73,695.6,1.06701445]
[1735565109484,0.26416954,697.72,695.59,1.06701445]
[1735565109680,0.26416954,697.71,695.59,1.06701445]
[1735565109880,0.26416954,697.7,695.59,1.06701445]
[1735565110086,0.26416954,697.69,695.59,1.06701445]
[1735565110286,0.26416954,697.68,695.61,1.06701445]
[1735565110488,0.26416954,697.67,695.61,1.06701445]
[1735565110687,0.26416954,697.66,695.61,1.06701445]
[1735565110987,0.26416954,697.65,695.61,1.06701445]
[1735565111287,0.26416954,697.64,695.64,1.06701445]
[1735565111489,0.26416954,697.63,695.64,1.06701445]
[1735565111686,0.28662329,697.78,695.64,1.06701445]
[1735565111886,0.26416214,697.77,695.64,1.06701445]
[1735565112083,0.26416214,697.76,695.64,1.06701445]
[1735565112285,0.26416214,697.76,694.99,0.78861477]
[1735565112286,0.26416214,697.75,695.69,1.06701445]
[1735565112486,0.26416214,697.74,695.69,1.06701445]
[1735565112683,0.26416214,697.73,695.69,1.06701445]
[1735565112886,0.26416214,697.72,695.69,1.06701445]
[1735565113087,0.26416214,697.71,695.71,1.06701445]
[1735565113389,0.28662329,697.78,695.71,1.06701445]
[1735565113587,0.26417028,697.7,695.71,1.06701445]
[1735565113891,0.2641763,697.69,695.72,1.06701445]
[1735565114083,0.28662329,697.78,695.72,1.06701445]
[1735565114287,0.26416974,697.77,695.72,1.06701445]
[1735565114584,0.26416974,697.76,695.72,1.06701445]
[1735565114784,0.26416974,697.75,695.72,1.06701445]
[1735565115090,0.26416974,697.74,695.78,1.06701445]
[1735565115290,0.26416974,697.73,695.78,1.06701445]
[1735565115490,0.26416974,697.72,695.78,1.06701445]
[1735565115790,0.26416974,697.71,695.78,1.06701445]
[1735565116084,0.28662329,697.78,695.83,1.06701445]
[1735565116289,0.26415279,697.7,695.83,1.06701445]
[1735565116486,0.26415279,697.69,695.83,1.06701445]
[1735565116684,0.26415279,697.68,695.9,1.06701445]
[1735565116885,0.26415279,697.67,695.9,1.06701445]
[1735565117084,0.26415279,697.66,695.9,1.06701445]
[1735565117290,0.26415279,697.65,695.9,1.06701445]
[1735565117492,0.26415279,697.64,695.9,1.06701445]
[1735565117693,0.26415279,697.63,695.97,1.06701445]
[1735565117985,0.26415279,697.62,695.97,1.06701445]
[1735565118187,0.26415279,697.61,695.97,1.06701445]
[1735565118491,0.26415279,697.6,695.97,1.06701445]
[1735565118691,0.28662329,697.78,696.05,1.06701445]
[1735565118891,0.26411849,697.77,696.05,1.06701445]
[1735565119090,0.26411849,697.76,696.05,1.06701445]
[1735565119296,0.5507541,697.75,696.05,1.06701445]
[1735565119487,0.28664383,697.73,696.05,1.06701445]
[1735565119688,0.26411849,697.72,696.11,1.06701445]
[1735565119993,0.28665615,697.7,696.11,1.06701445]
[1735565120192,0.26411849,697.69,696.11,1.06701445]
[1735565120492,0.26411849,697.68,696.11,1.06701445]
[1735565120693,0.26411849,697.67,696.11,1.06701445]
[1735565120994,0.26411849,697.66,696.15,1.06701445]
[1735565121191,0.26411849,697.65,696.15,1.06701445]
[1735565121391,0.2641583,697.65,696.15,1.06701445]
[1735565121592,0.26416116,697.64,696.15,1.06701445]
[1735565121793,0.26416116,697.63,696.15,1.06701445]
[1735565122087,0.55084516,697.62,696.15,1.06701445]
[1735565122293,0.55084516,697.62,696.11,1.06701445]
[1735565122294,0.26415614,697.61,696.11,1.06701445]
[1735565122486,0.26415614,697.6,696.11,1.06701445]
[1735565122792,0.28668902,697.62,696.11,1.06701445]
[1735565122793,0.26415614,697.59,696.11,1.06701445]
[1735565122993,0.26415614,697.58,696.11,1.06701445]
[1735565123189,0.26415614,697.57,696.11,1.06701445]
[1735565123395,0.55086982,697.56,696.15,1.06701445]
[1735565123594,0.26415614,697.55,696.15,1.06701445]
[1735565123795,0.26415614,697.54,696.15,1.06701445]
[1735565123995,0.28673012,697.52,696.15,1.06701445]
[1735565124296,0.26412717,697.51,696.2,1.06701445]
[1735565124594,0.26412717,697.5,696.2,1.06701445]
[1735565124894,0.26412717,697.49,696.2,1.06701445]
[1735565125094,0.28673012,697.52,696.2,1.06701445]
[1735565125095,0.26412717,697.48,696.2,1.06701445]
[1735565125294,0.26412717,697.47,696.2,1.06701445]
[1735565125496,0.26412717,697.46,696.27,1.06701445]
[1735565125695,0.26412717,697.45,696.27,1.06701445]
[1735565125891,0.26412717,697.44,696.27,1.06701445]
[1735565126194,0.26412717,697.43,696.27,1.06701445]
[1735565126392,0.26412717,697.51,696.27,1.06701445]
[1735565126599,0.28677535,697.41,696.31,1.06701445]
[1735565126890,0.26412717,697.4,696.31,1.06701445]
[1735565127095,0.28678769,697.38,696.31,1.06701445]
[1735565127296,0.26412717,697.37,696.31,1.06701445]
[1735565127690,0.26412717,697.37,696.15,1.06701445]
[1735565128996,0.28678769,697.38,696.15,1.06701445]
[1735565129190,0.26412323,697.37,696.15,1.06701445]
[1735565129892,0.26410231,697.36,696.06,1.06701445]
[1735565130191,0.55090233,697.35,696.06,1.06701445]
[1735565130395,0.26410231,697.34,696.06,1.06701445]
[1735565131695,0.28680002,697.35,696.06,1.06701445]
[1735565131897,0.26411601,697.34,696.02,1.06701445]
[1735565133096,0.26411601,697.34,696.04,1.06701445]
[1735565133892,0.26411601,697.34,696.01,1.06701445]
[1735565134098,0.28680002,697.35,696.01,1.06701445]
[1735565134710,0.28680002,697.35,695.98,1.06701445]
[1735565135597,0.28680002,697.35,695.96,1.06701445]
[1735565136401,0.26410057,697.34,695.96,1.06701445]
[1735565136807,0.26410057,697.34,696.0,1.06701445]
[1735565137106,0.28680002,697.35,696.0,1.06701445]
[1735565137305,0.26409253,697.34,696.0,1.06701445]
[1735565138206,0.26409253,697.34,696.12,1.06701445]
[1735565139005,0.26409253,697.34,696.1,1.06701445]
[1735565139708,0.26411035,697.33,696.1,1.06701445]
[1735565139907,0.26411035,697.33,695.31,2.18721128]
[1735565139908,0.26411035,697.32,696.08,1.06701445]
[1735565140207,0.26411035,697.31,696.08,1.06701445]
[1735565140407,0.28680002,697.35,696.08,1.06701445]
[1735565140607,0.26410994,697.34,696.08,1.06701445]
[1735565141020,0.26410994,697.34,696.14,1.06701445]
[1735565142012,0.26410994,697.34,696.21,1.06701445]
[1735565142207,0.28680002,697.35,696.21,1.06701445]
[1735565142413,0.2641112,697.33,696.21,1.06701445]
[1735565142612,0.2641112,697.32,696.21,1.06701445]
[1735565142814,0.2641112,697.31,696.21,1.06701445]
[1735565143008,0.2641112,697.3,696.21,1.06701445]
[1735565143209,0.2641112,697.3,695.63,1.28554459]
[1735565143210,0.2641112,697.29,696.18,1.06701445]
[1735565143415,0.2641112,697.28,696.18,1.06701445]
[1735565143713,0.28680002,697.35,696.18,1.06701445]
[1735565143714,0.2641112,697.27,696.18,1.06701445]
[1735565143914,0.2641112,697.26,696.18,1.06701445]
[1735565144115,0.2641112,697.25,696.18,1.06701445]
[1735565144309,0.2641112,697.24,696.18,1.06701445]
[1735565144511,0.2641112,697.23,696.04,1.06701445]
[1735565144716,0.2641112,697.34,696.04,1.06701445]
[1735565144910,0.2641112,697.33,696.04,1.06701445]
[1735565145113,0.2641112,697.32,696.04,1.06701445]
[1735565145310,0.2641112,697.31,696.04,1.06701445]
[1735565145514,0.26420918,697.3,696.04,1.06701445]
[1735565145809,0.26420918,697.3,695.39,2.18721128]
[1735565145810,0.26420918,697.29,696.0,1.06701445]
[1735565146009,0.26420918,697.28,696.0,1.06701445]
[1735565146209,0.26420918,697.27,696.0,1.06701445]
[1735565146409,0.26420918,697.26,696.0,1.06701445]
[1735565146614,0.26420918,697.25,696.0,1.06701445]
[1735565146815,0.26420918,697.24,695.85,1.06701445]
[1735565147015,0.26420918,697.23,695.85,1.06701445]
[1735565147212,0.26420918,697.22,695.85,1.06701445]
[1735565147418,0.28680002,697.35,695.85,1.06701445]
[1735565147614,0.26423725,697.34,695.82,1.06701445]
[1735565149516,0.26423725,697.34,695.03,2.18721128]
[1735565149517,0.26423725,697.34,695.74,1.06701445]
[1735565150218,0.26424713,697.33,695.74,1.06701445]
[1735565150512,0.26424713,697.32,695.68,1.06701445]
[1735565150711,0.26424713,697.31,695.68,1.06701445]
[1735565150910,0.26424713,697.3,695.68,1.06701445]
[1735565151111,0.26424713,697.29,695.68,1.06701445]
[1735565151415,0.26424713,697.28,695.68,1.06701445]
[1735565151717,0.26424713,697.27,695.57,1.06701445]
[1735565152018,0.26424713,697.26,695.57,1.06701445]
[1735565152217,0.26424713,697.25,695.57,1.06701445]
[1735565152416,0.28680002,697.35,695.45,1.06701445]
[1735565152417,0.26424713,697.24,695.45,1.06701445]
[1735565152616,0.26428785,697.23,695.45,1.06701445]
[1735565152815,0.26428785,697.22,695.45,1.06701445]
[1735565153017,0.26428785,697.21,695.45,1.06701445]
[1735565153219,0.28680002,697.35,695.45,1.06701445]
[1735565153418,0.26427534,697.34,695.45,1.06701445]
[1735565153621,0.26427534,697.34,695.46,1.06701445]
[1735565155322,0.26426182,697.33,695.46,1.06701445]
[1735565155519,0.26426182,697.32,695.46,1.06701445]
[1735565155714,0.28680002,697.35,695.49,1.06701445]
[1735565155715,0.26426182,697.34,695.49,1.06701445]
[1735565155917,0.26426182,697.33,695.49,1.06701445]
[1735565156118,0.26426182,697.32,695.49,1.06701445]
[1735565156320,0.26426182,697.31,695.49,1.06701445]
[1735565156621,0.26426182,697.3,695.49,1.06701445]
[1735565156817,0.26426182,697.29,695.49,1.06701445]
[1735565157015,0.26426182,697.28,695.49,1.06701445]
[1735565157214,0.26426182,697.27,695.49,1.06701445]
[1735565157420,0.26426182,697.26,695.49,1.06701445]
[1735565157712,0.26426182,697.26,694.69,2.18721128]
[1735565157713,0.26426182,697.25,695.53,1.06701445]
[1735565157917,0.26426182,697.34,695.53,1.06701445]
[1735565158114,0.26426182,697.33,695.53,1.06701445]
[1735565158320,0.26426182,697.32,695.53,1.06701445]
[1735565158520,0.26426182,697.31,695.53,1.06701445]
[1735565158721,0.26426182,697.3,695.54,1.06701445]
[1735565159021,0.26426182,697.29,695.54,1.06701445]
[1735565159220,0.26426182,697.28,695.54,1.06701445]
[1735565159419,0.28680002,697.35,695.54,1.06701445]
[1735565159420,0.26426182,697.27,695.54,1.06701445]
[1735565159620,0.26426182,697.26,695.49,1.06701445]
[1735565159820,0.26426182,697.25,695.49,1.06701445]
[1735565160018,0.26426182,697.24,695.49,1.06701445]
[1735565160215,0.26426182,697.23,695.49,1.06701445]
[1735565160420,0.28680002,697.35,695.49,1.06701445]
[1735565160715,0.26430442,697.34,695.49,1.06701445]
[1735565160919,0.26430442,697.33,695.45,1.06701445]
[1735565161122,0.2643022,697.32,695.45,1.06701445]
[1735565161321,0.2643022,697.31,695.45,1.06701445]
[1735565161514,0.28680002,697.35,695.45,1.06701445]
[1735565161515,0.2643022,697.3,695.45,1.06701445]
[1735565161716,0.2643022,697.29,695.45,1.06701445]
[1735565161914,0.2643022,697.29,694.81,2.18721128]
[1735565161915,0.2643022,697.28,695.44,1.06701445]
[1735565162120,0.2643022,697.27,695.44,1.06701445]
[1735565162322,0.2643022,697.26,695.44,1.06701445]
[1735565162521,0.2643022,697.25,695.44,1.06701445]
[1735565162725,0.2643022,697.24,695.47,1.06701445]
[1735565162916,0.2643022,697.23,695.47,1.06701445]
[1735565163117,0.2643022,697.22,695.47,1.06701445]
[1735565163322,0.2643022,697.21,695.47,1.06701445]
[1735565163624,0.2643022,697.2,695.47,1.06701445]
[1735565163825,0.2643022,697.19,695.47,1.06701445]
[1735565164123,0.2643022,697.18,695.47,1.06701445]
[1735565164323,0.2643022,697.17,695.47,1.06701445]
[1735565164524,0.2643022,697.16,695.47,1.06701445]
[1735565164719,0.2643022,697.15,695.47,1.06701445]
[1735565164922,0.2643022,697.34,695.48,1.06701445]
[1735565165116,0.2643022,697.33,695.48,1.06701445]
[1735565165324,0.2643022,697.32,695.48,1.06701445]
[1735565165519,0.2643022,697.31,695.48,1.06701445]
[1735565165726,0.55112279,697.3,695.48,1.06701445]
[1735565165922,0.28682882,697.28,695.48,1.06701445]
[1735565166124,0.2643022,697.27,695.48,1.06701445]
[1735565166324,0.28684116,697.25,695.49,1.06701445]
[1735565166626,0.2643022,697.24,695.49,1.06701445]
[1735565166821,0.2643022,697.23,695.49,1.06701445]
[1735565167026,0.28685761,697.21,695.49,1.06701445]
[1735565167227,0.2643022,697.2,695.56,1.06701445]
[1735565167422,0.28686996,697.18,695.56,1.06701445]
[1735565167622,0.26427665,697.17,695.56,1.06701445]
[1735565167821,0.2868823,697.15,695.56,1.06701445]
[1735565168021,0.26427665,697.14,695.56,1.06701445]
[1735565168227,0.28689465,697.12,695.36,1.06701445]
[1735565168423,0.264272,697.11,695.36,1.06701445]
[1735565168627,0.28690699,697.09,695.36,1.06701445]
[1735565168829,0.264272,697.08,695.36,1.06701445]
[1735565169233,0.28690699,697.09,695.38,1.06701445]
[1735565169630,0.26420848,697.08,695.38,1.06701445]
[1735565170232,0.28690699,697.09,695.78,1.06701445]
[1735565170430,0.26417031,697.08,695.78,1.06701445]
[1735565171432,0.26417031,697.08,695.79,1.06701445]
[1735565172233,0.26417031,697.08,695.77,1.06701445]
[1735565172732,0.26418019,697.07,695.77,1.06701445]
[1735565173032,0.28690699,697.09,695.77,1.06701445]
[1735565173234,0.26417262,697.08,695.81,1.06701445]
[1735565173928,0.28690699,697.09,695.81,1.06701445]
[1735565174235,0.26418272,697.08,695.83,1.06701445]
[1735565175029,0.26418272,697.08,695.14,2.18721128]
[1735565175030,0.28690699,697.09,695.88,1.06701445]
[1735565176133,0.28690699,697.09,695.63,1.07128716]
[1735565176134,0.28690699,697.09,695.82,1.06701445]
[1735565176935,0.28690699,697.09,695.92,1.06701445]
[1735565178638,0.28690699,697.09,695.91,1.06701445]
[1735565179638,0.28690699,697.09,695.98,1.06701445]
[1735565180940,0.28690699,697.09,695.96,1.06701445]
[1735565181942,0.28690699,697.09,695.12,2.18721128]
[1735565181943,0.28690699,697.09,696.02,1.06701445]
[1735565183039,0.28690699,697.09,696.07,1.06701445]
[1735565184443,0.28690699,697.09,695.89,1.06701445]
[1735565185043,0.28690699,697.09,695.87,1.06701445]
[1735565186245,0.28690699,697.09,695.86,1.06701445]
[1735565187539,0.28690699,697.09,695.84,1.06701445]
[1735565189043,0.26419552,697.08,695.62,1.06701445]
[1735565190145,0.26419552,697.08,695.64,1.06701445]
[1735565190845,0.2642205,697.07,695.64,1.06701445]
[1735565191047,0.2642205,697.06,695.64,1.06701445]
[1735565191241,0.2642205,697.05,695.64,1.06701445]
[1735565191440,0.26419848,697.04,695.64,1.06701445]
[1735565191646,0.28690699,697.09,695.64,1.06701445]
[1735565192246,0.28690699,697.09,694.91,2.18721128]
[1735565192247,0.28690699,697.09,695.6,1.06701445]
[1735565193346,0.28690699,697.09,695.55,1.06701445]
[1735565194248,0.28690699,697.09,695.22,1.07128716]
[1735565194249,0.28690699,697.09,695.63,1.06701445]
[1735565195348,0.28690699,697.09,695.66,1.06701445]
[1735565195944,0.26419685,697.08,695.66,1.06701445]
[1735565196451,0.26419685,697.08,695.67,1.06701445]
[1735565197252,0.26419685,697.08,695.68,1.06701445]
[1735565198250,0.26419685,697.08,695.69,1.06701445]
[1735565198551,0.26420921,697.07,695.69,1.06701445]
[1735565198751,0.26420921,697.06,695.69,1.06701445]
[1735565198951,0.26420921,697.05,695.69,1.06701445]
[1735565199253,0.26420803,697.04,695.86,1.06701445]
[1735565199453,0.26420803,697.03,695.86,1.06701445]
[1735565199652,0.26420803,697.02,695.86,1.06701445]
[1735565199856,0.26420803,697.01,695.86,1.06701445]
[1735565200155,0.26420803,697.0,695.81,1.06701445]
[1735565200353,0.26420803,696.99,695.81,1.06701445]
[1735565200556,0.26420803,696.98,695.81,1.06701445]
[1735565200748,0.26420803,696.97,695.81,1.06701445]
[1735565200953,0.26420803,697.08,695.81,1.06701445]
[1735565201154,0.26420803,697.07,695.8,1.06701445]
[1735565201355,0.26420803,697.06,695.8,1.06701445]
[1735565201555,0.26420803,697.05,695.8,1.06701445]
[1735565201751,0.26420803,697.04,695.8,1.06701445]
[1735565201955,0.26420803,697.03,695.8,1.06701445]
[1735565202157,0.26420803,697.03,695.86,1.06701445]
[1735565202555,0.28693581,697.02,695.86,1.06701445]
[1735565202757,0.26420803,697.01,695.86,1.06701445]
[1735565203057,0.28694404,697.0,695.92,1.06701445]
[1735565204360,0.28694404,697.0,695.99,1.06701445]
[1735565205352,0.28694404,697.0,695.74,1.07128716]
[1735565205353,0.28694404,697.0,695.98,1.06701445]